[Event "POL-chT 2nd League-4 2020"]
[Site "Poronin"]
[Date "2020.09.08"]
[Round "4.17"]
[White "Szydelko, Michal"]
[Black "Panek, Bartosz"]
[Result "1-0"]
[ECO "B07"]
[WhiteElo "1877"]
[BlackElo "1979"]
[Annotator "ChessBase"]
[PlyCount "79"]
[EventDate "2020.09.05"]
[EventType "team-tourn"]
[EventCountry "POL"]
[SourceTitle "playchess.com"]
[Source "ChessBase"]
[SourceQuality "1"]
[TimeControl "40/5400+30:900+30"]

1. e4 {[%emt 0:00:00]} d6 {[%emt 0:00:00]} 2. d4 {[%emt 0:00:00]} Nf6 {[%emt 0:00:00]} 3. Nc3 {[%emt 0:00:00]} Nbd7 {[%emt 0:00:00]} 4. Nf3 {[%emt 0:01:13]} e5 {[%emt 0:00:04]} 5. Bc4 {[%emt 0:00:40]} Be7 {[%emt 0:00:05]} 6. O-O {[%emt 0:01:46]} c6 {[%emt 0:00:11]} 7. a4 {[%emt 0:01:34]} Qc7 {[%emt 0:00:06]} 8. h3 {[%emt 0:06:14]} h6 {[%emt 0:00:07]} 9. Be3 {[%emt 0:02:05]} Nf8 {[%emt 0:00:22]} 10. Qd2 {[%emt 0:11:09]} g5 {[%emt 0:02:11]} 11. Ne1 {[%emt 0:08:17]} Ng6 {[%emt 0:00:34]} 12. Nd3 {[%emt 0:06:02]} Rg8 {[%emt 0:26:56]} 13. dxe5 {[%emt 0:12:11]} dxe5 {[%emt 0:00:36]} 14. Bc5 {[%emt 0:02:18]} Bxc5 {[%emt 0:05:07]} 15. Nxc5 {[%emt 0:00:08]} g4 {[%emt 0:00:35]} 16. hxg4 {[%emt 0:13:17]} Nxg4 {[%emt 0:00:47]} 17. Rfd1 {[%emt 0:17:10]} Qe7 {[%emt 0:16:37]} 18. g3 {[%emt 0:11:14]} Nf4 {[%emt 0:04:59]} 19. Qd6 {[%emt 0:00:34]} Qg5 {[%emt 0:16:54]} 20. Nb5 {[%emt 0:00:31]} Ne6 {[%emt 0:13:10]} 21. Nxe6 {[%emt 0:01:40]} fxe6 {[%emt 0:00:06]} 22. Nc7+ {[%emt 0:02:07]} Kf7 {[%emt 0:00:01]} 23. Bxe6+ {[%emt 0:00:16]} Bxe6 {[%emt 0:00:22]} 24. Qxe6+ {[%emt 0:00:12]} Kg7 {[%emt 0:00:26]} 25. Rd7+ {[%emt 0:01:15]} Kh8 {[%emt 0:00:11]} 26. Qf7 {[%emt 0:00:34]} Nf6 {[%emt 0:00:48]} 27. Nxa8 {[%emt 0:00:27]} Nxd7 {[%emt 0:00:41]} 28. Qxd7 {[%emt 0:00:26]} Rxa8 {[%emt 0:00:30]} 29. Qxb7 {[%emt 0:00:05]} Rf8 {[%emt 0:00:14]} 30. Qxc6 {[%emt 0:00:25]} h5 {[%emt 0:00:15]} 31. Rd1 {[%emt 0:01:01]} h4 {[%emt 0:00:08]} 32. Qc3 {[%emt 0:00:33]} h3 {[%emt 0:01:55]} 33. Rf1 {[%emt 0:00:31]} Rf4 {[%emt 0:01:10]} 34. Qc8+ {[%emt 0:00:15]} Kg7 {[%emt 0:00:11]} 35. Qd7+ {[%emt 0:00:09]} Kg8 {[%emt 0:00:11]} 36. Qe6+ {[%emt 0:00:11]} Kg7 {[%emt 0:00:16]} 37. Rd1 {[%emt 0:00:30]} h2+ {[%emt 0:00:37]} 38. Kg2 {[%emt 0:00:03]} Rf8 {[%emt 0:04:12]} 39. Rd7+ {[%emt 0:00:20]} Kh8 {[%emt 0:00:24]} 40. Qh3+ {[%emt 0:00:00]} 1-0

[Event "POL-chT 2nd League-4 2020"]
[Site "Poronin"]
[Date "2020.09.08"]
[Round "4.18"]
[White "Stebel, Agata"]
[Black "Trusz, Julia"]
[Result "1/2-1/2"]
[ECO "B22"]
[WhiteElo "1871"]
[BlackElo "1675"]
[Annotator "NA"]
[PlyCount "123"]
[EventDate "2020.09.05"]
[EventType "team-tourn"]
[EventCountry "POL"]
[SourceTitle "playchess.com"]
[Source "ChessBase"]
[SourceQuality "1"]
[TimeControl "40/5400+30:900+30"]

1. e4 {[%emt 0:00:00]} c5 {[%emt 0:00:00]} 2. c3 {[%emt 0:00:00]} d5 {[%emt 0:00:19]} 3. exd5 {[%emt 0:00:00]} Qxd5 {[%emt 0:00:07]} 4. d4 {[%emt 0:00:00]} Nf6 {[%emt 0:00:17]} 5. Nf3 {[%emt 0:00:20]} e6 {[%emt 0:01:05]} 6. Be3 {[%emt 0:02:05]} cxd4 {[%emt 0:02:02]} 7. cxd4 {[%emt 0:00:53]} Bb4+ {[%emt 0:00:52]} 8. Nc3 {[%emt 0:01:54]} Bd7 {[%emt 0:02:48]} 9. Bd3 {[%emt 0:02:23]} Bb5 {[%emt 0:03:15]} 10. O-O {[%emt 0:03:10]} Bxc3 {[%emt 0:01:58]} 11. bxc3 {[%emt 0:02:51]} O-O {[%emt 0:00:59]} 12. Bxb5 {[%emt 0:10:18]} Qxb5 {[%emt 0:00:09]} 13. Rb1 {[%emt 0:01:31]} Qa6 {[%emt 0:03:16]} 14. Qb3 {[%emt 0:03:18]} b6 {[%emt 0:02:26]} 15. Ne5 {[%emt 0:04:47]} Rc8 {[%emt 0:05:17]} 16. f4 {[%emt 0:16:56]} Nc6 {[%emt 0:08:24]} 17. Rf3 {[%emt 0:06:57]} Na5 {[%emt 0:07:47]} 18. Qc2 {[%emt 0:07:00]} Qb7 {[%emt 0:14:37]} 19. c4 {[%emt 0:07:09]} Qe4 {[%emt 0:04:07]} 20. Rc1 {[%emt 0:02:34]} Rc7 {[%emt 0:05:02]} 21. Qa4 {[%emt 0:07:32]} Rac8 {[%emt 0:06:18]} 22. h3 {[%emt 0:03:40]} h6 {[%emt 0:04:15]} 23. Bf2 {[%emt 0:01:17]} Qb7 {[%emt 0:06:31]} 24. c5 {[%emt 0:02:32]} Nc6 {[%emt 0:04:46]} 25. Rb1 {[%emt 0:01:29]} Nd5 {[%emt 0:01:43]} 26. Nc4 {[%emt 0:01:30]} Qa8 {[%emt 0:03:10]} 27. cxb6 {[%emt 0:02:23]} axb6 {[%emt 0:03:54]} 28. Qxa8 {[%emt 0:04:28]} Rxa8 {[%emt 0:00:08]} 29. Nxb6 {[%emt 0:01:37]} Rb7 {[%emt 0:07:24]} 30. Rfb3 {[%emt 0:01:19]} Rxa2 {[%emt 0:00:37]} 31. Nxd5 {[%emt 0:00:54]} Rxb3 {[%emt 0:00:07]} 32. Rxb3 {[%emt 0:00:31]} exd5 {[%emt 0:00:09]} 33. Rb5 {[%emt 0:01:27]} Ne7 {[%emt 0:02:06]} 34. g4 {[%emt 0:00:45]} f6 {[%emt 0:00:27]} 35. f5 {[%emt 0:00:43]} Re2 {[%emt 0:00:23]} 36. Kg2 {[%emt 0:00:42]} Rc2 {[%emt 0:00:35]} 37. Kf3 {[%emt 0:00:26]} Rc3+ {[%emt 0:00:25]} 38. Be3 {[%emt 0:00:37]} Ra3 {[%emt 0:00:40]} 39. Kf2 {[%emt 0:00:48]} Ra7 {[%emt 0:00:27]} 40. Bf4 {[%emt 0:00:00]} Rd7 {[%emt 0:00:00]} 41. Rb6 {[%emt 0:02:40]} Kf7 {[%emt 0:05:12]} 42. Re6 {[%emt 0:01:52]} Nc8 {[%emt 0:01:36]} 43. Kf3 {[%emt 0:01:56]} Rb7 {[%emt 0:01:42]} 44. Bc1 {[%emt 0:04:53]} Rb3+ {[%emt 0:01:38]} 45. Kg2 {[%emt 0:02:10]} Rd3 {[%emt 0:01:26]} 46. Be3 {[%emt 0:00:54]} Ne7 {[%emt 0:01:13]} 47. Kf3 {[%emt 0:00:19]} Rc3 {[%emt 0:02:33]} 48. Rd6 {[%emt 0:00:52]} Rb3 {[%emt 0:00:55]} 49. Rd7 {[%emt 0:00:33]} Ke8 {[%emt 0:00:51]} 50. Ra7 {[%emt 0:00:34]} Kf8 {[%emt 0:01:10]} 51. Rc7 {[%emt 0:02:23]} Ra3 {[%emt 0:01:32]} 52. Ke2 {[%emt 0:00:19]} Ra2+ {[%emt 0:00:09]} 53. Bd2 {[%emt 0:00:20]} Ra4 {[%emt 0:01:01]} 54. Kd3 {[%emt 0:00:39]} Ke8 {[%emt 0:01:37]} 55. Bc3 {[%emt 0:01:24]} h5 {[%emt 0:00:24]} 56. Kc2 {[%emt 0:00:28]} hxg4 {[%emt 0:00:27]} 57. hxg4 {[%emt 0:00:01]} Ra6 {[%emt 0:00:39]} 58. Bb4 {[%emt 0:00:37]} Rc6+ {[%emt 0:00:11]} 59. Rxc6 {[%emt 0:00:20]} Nxc6 {[%emt 0:00:01]} 60. Kc3 {[%emt 0:00:30]} Kf7 {[%emt 0:00:22]} 61. Bd6 {[%emt 0:01:56]} g6 {[%emt 0:00:21]} 62. Kd3 {[%emt 0:00:35]} 1/2-1/2

[Event "POL-chT 2nd League-4 2020"]
[Site "Poronin"]
[Date "2020.09.08"]
[Round "4.19"]
[White "Kosiorek, Marek"]
[Black "Bednarczyk, Damian"]
[Result "1-0"]
[ECO "A25"]
[WhiteElo "2223"]
[BlackElo "2258"]
[Annotator "ChessBase"]
[PlyCount "75"]
[EventDate "2020.09.05"]
[EventType "team-tourn"]
[EventCountry "POL"]
[SourceTitle "playchess.com"]
[Source "ChessBase"]
[SourceQuality "1"]
[TimeControl "40/5400+30:900+30"]

1. c4 {[%emt 0:00:00]} e5 {[%emt 0:02:07]} 2. g3 {[%emt 0:00:00]} Nc6 {[%emt 0:00:37]} 3. Bg2 {[%emt 0:00:00]} g6 {[%emt 0:00:07]} 4. Nc3 {[%emt 0:00:20]} Bg7 {[%emt 0:00:15]} 5. Rb1 {[%emt 0:01:04]} d6 {[%emt 0:06:14]} 6. b4 {[%emt 0:01:08]} a6 {[%emt 0:03:51]} 7. a4 {[%emt 0:04:12]} Be6 {[%emt 0:04:39]} 8. b5 {[%emt 0:01:34]} Na5 {[%emt 0:02:05]} 9. d3 {[%emt 0:02:00]} Ne7 {[%emt 0:01:33]} 10. Nf3 {[%emt 0:06:38]} O-O {[%emt 0:02:13]} 11. O-O {[%emt 0:01:10]} h6 {[%emt 0:00:05]} 12. Bd2 {[%emt 0:03:06]} axb5 {[%emt 0:06:23]} 13. axb5 {[%emt 0:01:05]} f5 {[%emt 0:00:31]} 14. Ne1 {[%emt 0:08:47]} e4 {[%emt 0:02:44]} 15. Nc2 {[%emt 0:11:47]} Qd7 {[%emt 0:02:56]} 16. Nb4 {[%emt 0:06:35]} b6 {[%emt 0:13:42]} 17. dxe4 {[%emt 0:15:18]} Rae8 {[%emt 0:01:47]} 18. Qc1 {[%emt 0:05:17]} Kh7 {[%emt 0:04:59]} 19. Ncd5 {[%emt 0:00:52]} fxe4 {[%emt 0:00:10]} 20. Bxe4 {[%emt 0:06:52]} Nxd5 {[%emt 0:02:12]} 21. cxd5 {[%emt 0:00:52]} Bh3 {[%emt 0:00:10]} 22. Qc2 {[%emt 0:08:54]} Rxe4 {[%emt 0:10:49]} 23. Qxe4 {[%emt 0:00:09]} Re8 {[%emt 0:00:09]} 24. Qf3 {[%emt 0:06:53]} Nc4 {[%emt 0:05:09]} 25. Bf4 {[%emt 0:02:23]} Bxf1 {[%emt 0:06:07]} 26. Kxf1 {[%emt 0:00:31]} Qf5 {[%emt 0:18:25]} 27. Qd3 {[%emt 0:00:24]} Na3 {[%emt 0:00:26]} 28. Qxf5 {[%emt 0:02:39]} gxf5 {[%emt 0:00:02]} 29. Rc1 {[%emt 0:01:45]} Nxb5 {[%emt 0:00:43]} 30. Na6 {[%emt 0:01:26]} Re7 {[%emt 0:01:52]} 31. Rc6 {[%emt 0:00:32]} Bd4 {[%emt 0:01:09]} 32. e3 {[%emt 0:00:37]} Bc5 {[%emt 0:00:19]} 33. Ke1 {[%emt 0:00:33]} Kg7 {[%emt 0:01:20]} 34. Kd2 {[%emt 0:00:06]} h5 {[%emt 0:00:28]} 35. Kd3 {[%emt 0:00:23]} Kf8 {[%emt 0:00:35]} 36. Kc4 {[%emt 0:01:29]} Na3+ {[%emt 0:00:01]} 37. Kd3 {[%emt 0:00:04]} Nb5 {[%emt 0:00:04]} 38. Bg5 {[%emt 0:00:32]} 1-0

[Event "POL-chT 2nd League-4 2020"]
[Site "Poronin"]
[Date "2020.09.08"]
[Round "4.20"]
[White "Mirski, Michal"]
[Black "Lukasik, Adam"]
[Result "1-0"]
[ECO "B00"]
[WhiteElo "2032"]
[BlackElo "2010"]
[Annotator "ChessBase"]
[PlyCount "55"]
[EventDate "2020.09.05"]
[EventType "team-tourn"]
[EventCountry "POL"]
[SourceTitle "playchess.com"]
[Source "ChessBase"]
[SourceQuality "1"]
[TimeControl "40/5400+30:900+30"]

1. e4 {[%emt 0:01:19]} d6 {[%emt 0:00:00]} 2. Nc3 {[%emt 0:00:04]} e5 {[%emt 0:00:10]} 3. f4 {[%emt 0:01:46]} exf4 {[%emt 0:04:53]} 4. Bc4 {[%emt 0:07:18]} Qh4+ {[%emt 0:09:48]} 5. Kf1 {[%emt 0:01:28]} Be6 {[%emt 0:02:25]} 6. Be2 {[%emt 0:05:36]} g6 {[%emt 0:12:21]} 7. d4 {[%emt 0:01:19]} Bh6 {[%emt 0:16:36]} 8. Bf3 {[%emt 0:07:04]} Ne7 {[%emt 0:05:06]} 9. g3 {[%emt 0:12:50]} Bh3+ {[%emt 0:09:09]} 10. Kf2 {[%emt 0:04:07]} Qf6 {[%emt 0:06:15]} 11. Nxh3 {[%emt 0:01:15]} fxg3+ {[%emt 0:00:32]} 12. hxg3 {[%emt 0:02:03]} Bg7 {[%emt 0:00:45]} 13. Be3 {[%emt 0:05:37]} Nec6 {[%emt 0:01:54]} 14. Nb5 {[%emt 0:02:39]} Qe7 {[%emt 0:01:01]} 15. Nf4 {[%emt 0:01:01]} Na6 {[%emt 0:02:05]} 16. Nd5 {[%emt 0:00:34]} Qd8 {[%emt 0:00:37]} 17. Qd2 {[%emt 0:01:15]} Ncb8 {[%emt 0:00:58]} 18. Bf4 {[%emt 0:04:25]} h5 {[%emt 0:04:31]} 19. g4 {[%emt 0:05:37]} Qd7 {[%emt 0:00:28]} 20. Qe2 {[%emt 0:02:28]} h4 {[%emt 0:06:52]} 21. g5 {[%emt 0:00:35]} Qd8 {[%emt 0:02:43]} 22. c3 {[%emt 0:05:07]} Kf8 {[%emt 0:02:00]} 23. Ndxc7 {[%emt 0:02:17]} Nxc7 {[%emt 0:00:31]} 24. Bxd6+ {[%emt 0:00:08]} Kg8 {[%emt 0:00:19]} 25. Bxc7 {[%emt 0:01:13]} Qxg5 {[%emt 0:00:30]} 26. Rag1 {[%emt 0:00:55]} Qe7 {[%emt 0:01:09]} 27. Bd6 {[%emt 0:01:56]} Qe6 {[%emt 0:00:46]} 28. e5 {[%emt 0:00:35]} 1-0

[Event "POL-chT 2nd League-4 2020"]
[Site "Poronin"]
[Date "2020.09.08"]
[Round "4.21"]
[White "Kurpiewski, Slawomir"]
[Black "Turecki, Stanislaw"]
[Result "1-0"]
[ECO "A03"]
[WhiteElo "1943"]
[BlackElo "1785"]
[Annotator "ChessBase"]
[PlyCount "93"]
[EventDate "2020.09.05"]
[EventType "team-tourn"]
[EventCountry "POL"]
[SourceTitle "playchess.com"]
[Source "ChessBase"]
[SourceQuality "1"]
[TimeControl "40/5400+30:900+30"]

1. f4 {[%emt 0:00:52]} d5 {[%emt 0:00:36]} 2. Nf3 {[%emt 0:00:13]} Nf6 {[%emt 0:00:46]} 3. g3 {[%emt 0:00:09]} e6 {[%emt 0:01:06]} 4. Bg2 {[%emt 0:00:09]} c5 {[%emt 0:01:17]} 5. O-O {[%emt 0:00:15]} Nc6 {[%emt 0:00:50]} 6. d3 {[%emt 0:00:09]} Be7 {[%emt 0:05:10]} 7. e4 {[%emt 0:17:29]} dxe4 {[%emt 0:01:58]} 8. dxe4 {[%emt 0:00:16]} Qxd1 {[%emt 0:02:50]} 9. Rxd1 {[%emt 0:00:08]} Nxe4 {[%emt 0:01:09]} 10. Ne5 {[%emt 0:00:10]} Nxe5 {[%emt 0:01:59]} 11. fxe5 {[%emt 0:00:16]} f5 {[%emt 0:00:20]} 12. Bxe4 {[%emt 0:05:19]} fxe4 {[%emt 0:00:19]} 13. Nc3 {[%emt 0:00:07]} O-O {[%emt 0:01:53]} 14. Nxe4 {[%emt 0:00:14]} b6 {[%emt 0:02:47]} 15. Bg5 {[%emt 0:01:34]} Bxg5 {[%emt 0:04:21]} 16. Nxg5 {[%emt 0:00:02]} h6 {[%emt 0:00:12]} 17. Nh3 {[%emt 0:00:52]} Bb7 {[%emt 0:16:00]} 18. Rd6 {[%emt 0:06:17]} Rae8 {[%emt 0:02:19]} 19. Nf4 {[%emt 0:04:53]} Bc8 {[%emt 0:04:30]} 20. Re1 {[%emt 0:02:01]} g5 {[%emt 0:02:27]} 21. Nh5 {[%emt 0:00:34]} Rd8 {[%emt 0:00:26]} 22. Nf6+ {[%emt 0:05:33]} Kf7 {[%emt 0:01:13]} 23. Red1 {[%emt 0:00:16]} Rxd6 {[%emt 0:01:56]} 24. Rxd6 {[%emt 0:00:03]} Ke7 {[%emt 0:03:28]} 25. Rd3 {[%emt 0:00:28]} Kf7 {[%emt 0:06:26]} 26. g4 {[%emt 0:03:20]} Ke7 {[%emt 0:02:20]} 27. Kf2 {[%emt 0:00:46]} Kf7 {[%emt 0:02:45]} 28. Ke3 {[%emt 0:01:10]} Rh8 {[%emt 0:00:36]} 29. c4 {[%emt 0:00:52]} Ke7 {[%emt 0:01:20]} 30. Ra3 {[%emt 0:01:14]} a6 {[%emt 0:01:52]} 31. Rb3 {[%emt 0:00:04]} Kd8 {[%emt 0:00:15]} 32. Rxb6 {[%emt 0:00:12]} Kc7 {[%emt 0:00:12]} 33. Rd6 {[%emt 0:00:27]} Rf8 {[%emt 0:00:28]} 34. Rd3 {[%emt 0:00:52]} Kc6 {[%emt 0:01:48]} 35. Ke2 {[%emt 0:00:54]} Kc7 {[%emt 0:02:47]} 36. Rh3 {[%emt 0:02:10]} Rh8 {[%emt 0:01:01]} 37. Kd2 {[%emt 0:02:02]} Bb7 {[%emt 0:01:21]} 38. Kc3 {[%emt 0:00:20]} a5 {[%emt 0:00:41]} 39. Rd3 {[%emt 0:00:30]} Bc6 {[%emt 0:00:20]} 40. Rd6 {[%emt 0:00:00]} Bf3 {[%emt 0:00:00]} 41. Rxe6 {[%emt 0:01:47]} h5 {[%emt 0:00:57]} 42. gxh5 {[%emt 0:02:46]} Bxh5 {[%emt 0:00:17]} 43. Nd5+ {[%emt 0:00:20]} Kd8 {[%emt 0:01:14]} 44. Ra6 {[%emt 0:03:18]} Be8 {[%emt 0:00:37]} 45. Ra8+ {[%emt 0:04:30]} Kd7 {[%emt 0:00:12]} 46. Nf6+ {[%emt 0:00:16]} Ke7 {[%emt 0:00:16]} 47. Rxe8+ {[%emt 0:00:47]} 1-0

[Event "POL-chT 2nd League-4 2020"]
[Site "Poronin"]
[Date "2020.09.08"]
[Round "4.22"]
[White "Rainer, Piotr"]
[Black "Sikorski, Tomasz"]
[Result "1-0"]
[ECO "C05"]
[WhiteElo "1641"]
[BlackElo "1702"]
[Annotator "NA"]
[PlyCount "67"]
[EventDate "2020.09.05"]
[EventType "team-tourn"]
[EventCountry "POL"]
[SourceTitle "playchess.com"]
[Source "ChessBase"]
[SourceQuality "1"]
[TimeControl "40/5400+30:900+30"]

1. e4 e6 2. d4 d5 3. Nd2 Nf6 4. exd5 exd5 5. Bd3 Bg4 6. Ne2 Qd7 7. O-O Nc6 8. c3 Bf5 9. Bxf5 Qxf5 10. Ng3 Qd7 11. Nb3 O-O-O 12. a4 h5 13. a5 h4 14. Ne2 Qg4 15. f3 Qf5 16. Nc5 Bxc5 17. dxc5 a6 18. b4 Rd7 19. b5 Nb8 20. Nd4 Qg6 21. c6 bxc6 22. bxa6 Nxa6 23. Qe2 Kb7 24. Nxc6 Ra8 25. Qb5+ Kc8 26. Rb1 Qxb1 27. Qxb1 d4 28. cxd4 Rd6 29. Ne7+ Kd8 30. Qb7 Kxe7 31. Qxa8 Nd5 32. Bg5+ f6 33. Re1+ Kd7 34. Qe8# 1-0

[Event "POL-chT 2nd League-4 2020"]
[Site "Poronin"]
[Date "2020.09.08"]
[Round "4.24"]
[White "Siwek, Kinga"]
[Black "Dabrowska, Aleksandra"]
[Result "0-1"]
[ECO "B19"]
[WhiteElo "1804"]
[BlackElo "1566"]
[Annotator "NA"]
[PlyCount "124"]
[EventDate "2020.09.05"]
[EventType "team-tourn"]
[EventCountry "POL"]
[SourceTitle "playchess.com"]
[Source "ChessBase"]
[SourceQuality "1"]
[TimeControl "40/5400+30:900+30"]

1. e4 c6 2. d4 d5 3. Nc3 dxe4 4. Nxe4 Bf5 5. Ng3 Bg6 6. Nf3 Nd7 7. h4 h6 8. h5 Bh7 9. Bd3 Bxd3 10. Qxd3 e6 11. Bd2 Qc7 12. O-O-O O-O-O 13. Rhe1 Ngf6 14. Qe2 Bd6 15. Ne5 Rhf8 16. f4 c5 17. dxc5 Bxc5 18. Nd3 Bd6 19. Ne4 Nxe4 20. Qxe4 Nf6 21. Qa4 Kb8 22. Be3 b6 23. Ne5 Rc8 24. c3 Bxe5 25. fxe5 Nd5 26. Bd2 Qc4 27. Re4 Qxa4 28. Rxa4 Rc7 29. Rg4 f6 30. Rf1 Kb7 31. Kb1 b5 32. Rf3 Rff7 33. exf6 Rxf6 34. Rxf6 Nxf6 35. Rb4 Rc5 36. g4 a5 37. Rf4 e5 38. Rf5 Nxg4 39. Kc2 Rc7 40. Kd3 Kc6 41. Ke2 Rd7 42. Be1 e4 43. Rf4 Nf6 44. Bh4 Nxh5 45. Rxe4 g5 46. Bf2 Nf4+ 47. Kf3 Nd3 48. Bd4 Nxb2 49. Re6+ Rd6 50. Re8 Nc4 51. Rc8+ Kd7 52. Rc5 Na3 53. Kg4 Ra6 54. Kh5 b4 55. cxb4 axb4 56. Rf5 Nc2 57. Bg7 Rxa2 58. Kxh6 Ne3 59. Rb5 g4 60. Bd4 Nc2 61. Bc5 Kc6 62. Bg1 Ra1 0-1

[Event "POL-chT 2nd League-4 2020"]
[Site "Poronin"]
[Date "2020.09.09"]
[Round "5.6"]
[White "Suchanek, Paulina"]
[Black "Rykala, Monika"]
[Result "1/2-1/2"]
[ECO "D44"]
[WhiteElo "1555"]
[BlackElo "1877"]
[Annotator "NA RC"]
[PlyCount "73"]
[EventDate "2020.09.05"]
[EventType "team-tourn"]
[EventCountry "POL"]
[SourceTitle "playchess.com"]
[Source "ChessBase"]
[SourceQuality "1"]
[TimeControl "40/5400+30:900+30"]

1. d4 {[%emt 0:00:00]} d5 {[%emt 0:00:00]} 2. c4 {[%emt 0:00:00]} e6 {[%emt 0:00:00]} 3. Nc3 {[%emt 0:00:00]} Nf6 {[%emt 0:00:00]} 4. Nf3 {[%emt 0:00:52]} c6 {[%emt 0:00:00]} 5. Bg5 {[%emt 0:00:08]} dxc4 {[%emt 0:00:04]} 6. e3 {[%emt 0:02:23]} b5 {[%emt 0:00:15]} 7. Be2 {[%emt 0:01:26]} Bb7 {[%emt 0:00:47]} 8. O-O {[%emt 0:04:04]} Nbd7 {[%emt 0:05:28]} 9. Qc2 {[%emt 0:02:47]} h6 {[%emt 0:03:47]} 10. Bh4 {[%emt 0:00:30]} Qb6 {[%emt 0:05:26]} 11. b3 {[%emt 0:02:44]} cxb3 {[%emt 0:01:12]} 12. Qxb3 {[%emt 0:02:07]} a6 {[%emt 0:09:25]} 13. Rac1 {[%emt 0:05:09]} Rc8 {[%emt 0:07:57]} 14. Bxf6 {[%emt 0:06:55]} Nxf6 {[%emt 0:26:45]} 15. Ne5 {[%emt 0:06:24]} Bd6 {[%emt 0:05:32]} 16. Na4 {[%emt 0:04:53]} Qc7 {[%emt 0:00:55]} 17. Nc5 {[%emt 0:02:34]} Bxc5 {[%emt 0:01:44]} 18. Rxc5 {[%emt 0:00:09]} Ne4 {[%emt 0:00:38]} 19. Rc2 {[%emt 0:00:29]} c5 {[%emt 0:01:03]} 20. Rb1 {[%emt 0:05:06]} Bd5 {[%emt 0:05:22]} 21. Qa3 {[%emt 0:03:07]} Qd6 {[%emt 0:04:14]} 22. f3 {[%emt 0:03:21]} c4 {[%emt 0:01:42]} 23. Qa5 {[%emt 0:04:39]} Nf6 {[%emt 0:12:21]} 24. a4 {[%emt 0:02:29]} O-O {[%emt 0:03:54]} 25. axb5 {[%emt 0:01:59]} axb5 {[%emt 0:00:01]} 26. Rxb5 {[%emt 0:00:13]} Ra8 {[%emt 0:00:49]} 27. Qb4 {[%emt 0:02:15]} Qxb4 {[%emt 0:00:40]} 28. Rxb4 {[%emt 0:00:02]} Ra3 {[%emt 0:00:26]} 29. e4 {[%emt 0:03:06]} Ba8 {[%emt 0:02:26]} 30. Rbxc4 {[%emt 0:01:57]} Ra7 {[%emt 0:00:58]} 31. Kf2 {[%emt 0:03:15]} Nd7 {[%emt 0:00:47]} 32. Nxd7 {[%emt 0:02:06]} Rxd7 {[%emt 0:00:01]} 33. Ke3 {[%emt 0:00:17]} Rfd8 {[%emt 0:00:30]} 34. Rd2 {[%emt 0:03:18]} Kf8 {[%emt 0:00:10]} 35. Bd1 {[%emt 0:00:16]} Ra7 {[%emt 0:00:35]} 36. Ra4 {[%emt 0:02:15]} Rc7 {[%emt 0:00:37]} 37. Be2 1/2-1/2

[Event "POL-chT 2nd League-4 2020"]
[Site "Poronin"]
[Date "2020.09.09"]
[Round "5.10"]
[White "Hemmerling, Jaroslaw"]
[Black "Ociepka, Tomasz"]
[Result "1-0"]
[ECO "D79"]
[WhiteElo "1938"]
[BlackElo "1888"]
[Annotator "RC"]
[PlyCount "71"]
[EventDate "2020.09.05"]
[EventType "team-tourn"]
[EventCountry "POL"]
[SourceTitle "playchess.com"]
[Source "ChessBase"]
[SourceQuality "1"]
[TimeControl "40/5400+30:900+30"]

1. Nf3 {[%emt 0:00:00]} Nf6 {[%emt 0:00:00]} 2. g3 {[%emt 0:00:00]} g6 {[%emt 0:00:00]} 3. Bg2 {[%emt 0:00:00]} Bg7 {[%emt 0:00:00]} 4. O-O {[%emt 0:00:00]} O-O {[%emt 0:00:01]} 5. d4 {[%emt 0:00:07]} c6 {[%emt 0:00:46]} 6. c4 {[%emt 0:00:04]} d5 {[%emt 0:00:04]} 7. cxd5 {[%emt 0:00:04]} cxd5 {[%emt 0:00:12]} 8. Nc3 {[%emt 0:00:16]} Qb6 {[%emt 0:04:04]} 9. b3 {[%emt 0:11:48]} Nc6 {[%emt 0:04:09]} 10. Bg5 {[%emt 0:10:44]} Ne4 {[%emt 0:13:30]} 11. Na4 {[%emt 0:13:52]} Qd8 {[%emt 0:07:46]} 12. Be3 {[%emt 0:05:11]} b5 {[%emt 0:06:36]} 13. Rc1 {[%emt 0:00:30]} bxa4 {[%emt 0:05:38]} 14. Rxc6 {[%emt 0:00:16]} Bd7 {[%emt 0:00:46]} 15. Rc1 {[%emt 0:01:39]} Qa5 {[%emt 0:03:23]} 16. Ne5 {[%emt 0:07:00]} Bb5 {[%emt 0:06:20]} 17. Nc6 {[%emt 0:12:58]} Qc7 {[%emt 0:10:30]} 18. Nb4 {[%emt 0:00:05]} Qd7 {[%emt 0:11:07]} 19. Nxd5 {[%emt 0:00:18]} Qxd5 {[%emt 0:00:14]} 20. Rc5 {[%emt 0:00:06]} Qd7 {[%emt 0:00:27]} 21. Bxe4 {[%emt 0:00:33]} Rac8 {[%emt 0:00:59]} 22. b4 {[%emt 0:03:45]} e6 {[%emt 0:02:04]} 23. Qc2 {[%emt 0:02:17]} Bf6 {[%emt 0:01:12]} 24. Rc1 {[%emt 0:00:17]} Rxc5 {[%emt 0:00:52]} 25. dxc5 {[%emt 0:00:51]} Bc6 {[%emt 0:00:37]} 26. Bxc6 {[%emt 0:02:18]} Qxc6 {[%emt 0:00:02]} 27. Qc4 {[%emt 0:00:26]} a6 {[%emt 0:00:30]} 28. Qf4 {[%emt 0:02:49]} e5 {[%emt 0:01:46]} 29. Qc4 {[%emt 0:09:46]} Rd8 {[%emt 0:01:25]} 30. f3 {[%emt 0:00:39]} Kf8 {[%emt 0:01:57]} 31. Kf2 {[%emt 0:00:16]} Ke8 {[%emt 0:00:21]} 32. Rb1 {[%emt 0:03:08]} Rd7 {[%emt 0:01:49]} 33. b5 {[%emt 0:00:25]} axb5 {[%emt 0:00:02]} 34. Rxb5 {[%emt 0:00:11]} Ra7 {[%emt 0:03:29]} 35. Rb6 {[%emt 0:00:56]} Qc7 {[%emt 0:00:35]} 36. Rxf6 {[%emt 0:00:18]} 1-0